bitfinex-derivatives/quotes_SOLF0:USTF0_20251229
["timestamp","ask_amount","ask_price","bid_price","bid_amount"]
[1767020836130,0.06021342,123.27,123.25,0.05922739]
[1767020837234,0.06021342,123.27,123.22,1.93766311]
[1767020837728,0.00021342,123.27,123.22,1.93766311]
[1767020838734,0.00021342,123.27,123.23,0.06213694]
[1767020839028,0.00118973,123.26,123.23,0.06213694]
[1767020839234,209.5225,123.32,123.22,99.09]
[1767020839729,120.9769,123.31,123.22,3.21]
[1767020839930,0.06125713,123.28,123.22,3.21]
[1767020840932,0.00125713,123.28,123.24,3.26999885]
[1767020841237,7.33245494,123.33,123.24,99.14999885]
[1767020841428,7.33245494,123.33,123.24,99.09]
[1767020841628,14.63885494,123.33,123.24,99.09]
[1767020841927,95.88,123.4,123.28,3.21]
[1767020842138,14.63415494,123.41,123.31,3.21]
[1767020842625,120.88685494,123.44,123.33,3.21]
[1767020842824,7.33245494,123.44,123.34,99.09]
[1767020843321,0.05339435,123.4,123.31,3.21]
[1767020843532,113.5632,123.43,123.31,3.21]
[1767020843533,7.3004,123.43,123.34,95.88]
[1767020843731,7.3004,123.43,123.34,99.09]
[1767020844322,0.05548879,123.4,123.37,0.05563961]
[1767020845930,14.63165494,123.45,123.37,3.26563961]
[1767020846135,14.63165494,123.45,123.38,95.88]
[1767020846324,113.5217,123.47,123.37,3.21]
[1767020846528,7.2987,123.46,123.38,95.88]
[1767020846925,113.5333,123.46,123.38,95.88]
[1767020847129,0.06141953,123.43,123.41,0.06015716]
[1767020848937,0.06141953,123.43,123.41,95.92015716]
[1767020849235,0.06141953,123.43,123.41,0.06015716]
[1767020850641,0.06141953,123.43,123.36,3.21]
[1767020850839,0.06141953,123.43,123.37,95.86]
[1767020851244,0.06141953,123.43,123.37,95.84]
[1767020851940,0.06141953,123.43,123.39,0.05452333]
[1767020853533,7.39387447,123.43,123.33,3.21]
[1767020853740,120.89305494,123.43,123.34,95.84]
[1767020854132,120.89305494,123.43,123.34,99.05]
[1767020854338,7.33245494,123.43,123.35,3.21]
[1767020854540,0.05146892,123.4,123.38,0.05614222]
[1767020854947,0.00146892,123.4,123.38,0.05614222]
[1767020857039,0.00146892,123.4,123.38,3.26614222]
[1767020857839,0.00146892,123.4,123.38,10.56904222]
[1767020858038,0.00146892,123.4,123.39,3.21]
[1767020858439,0.00146892,123.4,123.39,99.05]
[1767020860752,0.00146892,123.4,123.39,100.67]
[1767020860949,7.297,123.49,123.41,3.21]
[1767020861251,7.33245494,123.5,123.41,3.21]
[1767020861448,14.62855494,123.5,123.41,3.21]
[1767020861838,0.05528138,123.47,123.41,3.21]
[1767020862052,0.05528138,123.47,123.42,7.98860035]
[1767020862243,0.05528138,123.47,123.43,95.82]
[1767020862443,0.05528138,123.47,123.43,99.03]
[1767020862655,209.2772,123.55,123.44,3.21]
[1767020862848,7.33245494,123.54,123.44,3.21]
[1767020863147,7.33245494,123.54,123.45,95.82]
[1767020863339,7.2961,123.5,123.45,95.82]
[1767020863545,0.05377061,123.49,123.46,0.06024913]
[1767020866848,0.05377061,123.49,123.45,95.8]
[1767020867146,7.35057061,123.49,123.41,10.7409]
[1767020867355,113.4899,123.51,123.41,3.44]
[1767020867562,113.4946,123.5,123.41,3.44]
[1767020867758,0.05147828,123.47,123.44,0.05561779]
[1767020869259,7.34947828,123.47,123.44,0.05561779]
[1767020869460,7.34947828,123.47,123.42,95.8]
[1767020870462,7.34947828,123.47,123.43,0.06083256]
[1767020873155,7.2985,123.46,123.43,0.00083256]
[1767020873748,113.5343,123.46,123.38,3.52]
[1767020873947,113.5409,123.45,123.36,99.3]
[1767020874354,113.5409,123.45,123.37,95.78]
[1767020874951,0.05688732,123.42,123.4,0.05782051]
[1767020875351,0.05688732,123.42,123.37,95.78]
[1767020876162,7.35768732,123.42,123.37,95.78]
[1767020876362,7.35768732,123.42,123.38,0.0559181]
[1767020878058,0.05688732,123.42,123.38,0.0559181]
[1767020881362,0.05688732,123.42,123.34,99.32]
[1767020881568,113.5713,123.42,123.34,99.32]
[1767020881862,7.3027,123.39,123.3,3.52]
[1767020882062,120.91475494,123.41,123.31,99.32]
[1767020882263,7.35699937,123.37,123.35,0.05159702]
[1767020882563,7.35699937,123.37,123.31,3.52]
[1767020882758,0.05299937,123.37,123.31,3.52]
[1767020884664,113.5554,123.44,123.31,3.52]
[1767020885277,7.3021,123.4,123.34,3.52]
[1767020885579,113.5588,123.43,123.34,3.52]
[1767020885771,0.05800387,123.4,123.37,0.05299937]
[1767020885981,7.3,123.44,123.37,0.05299937]
[1767020886281,216.67525494,123.45,123.37,0.05299937]
[1767020886482,216.67525494,123.45,123.36,3.52]
[1767020886778,103.13245494,123.45,123.36,3.52]
[1767020887276,103.13245494,123.45,123.34,95.82]
[1767020887277,0.05884057,123.42,123.39,0.05807838]
[1767020889582,103.15245494,123.48,123.39,3.57807838]
[1767020889782,103.15245494,123.48,123.39,99.34]
[1767020890274,7.2985,123.46,123.39,99.34]
[1767020890476,7.2985,123.46,123.4,3.52]
[1767020890682,7.2985,123.46,123.41,0.05363417]
[1767020891673,113.494,123.51,123.41,3.57363417]
[1767020891879,113.494,123.51,123.41,3.52]
[1767020892385,209.2837,123.52,123.39,113.5925]
[1767020892386,7.2964,123.5,123.43,3.52]
[1767020892577,95.8,123.52,123.43,3.52]
[1767020892884,0.06050059,123.49,123.46,0.05212317]
[1767020896180,0.06050059,123.49,123.46,0.00212317]
[1767020896578,7.35730059,123.49,123.46,0.00212317]
[1767020897581,113.5136,123.48,123.4,3.46]
[1767020897786,113.5062,123.49,123.4,3.46]
[1767020898187,113.5062,123.49,123.4,99.26]
[1767020898490,0.05435443,123.46,123.43,0.06026246]
[1767020899384,7.35285443,123.46,123.4,3.46]
[1767020899688,0.05435443,123.46,123.38,99.26]
[1767020899891,113.5218,123.47,123.38,99.26]
[1767020900490,0.05836542,123.44,123.41,0.05586137]
[1767020902790,7.35796542,123.44,123.41,0.05586137]
[1767020903099,7.35796542,123.44,123.38,3.46]
[1767020903995,7.35796542,123.44,123.4,0.05330287]
[1767020907897,0.05836542,123.44,123.4,0.05330287]
[1767020910605,7.35806542,123.44,123.4,0.05330287]
[1767020914098,7.35806542,123.44,123.32,135.2727]
[1767020914099,113.61056542,123.44,123.35,3.46]
[1767020914309,113.5522,123.44,123.35,3.46]
[1767020914496,113.5598,123.43,123.35,3.46]
[1767020914902,113.59,123.4,123.32,3.46]
[1767020915097,113.5953,123.39,123.29,3.46]
[1767020915399,0.0575672,123.37,123.3,99.26]
[1767020915595,113.5953,123.39,123.3,3.46]
[1767020915902,113.5953,123.39,123.3,99.26]
[1767020916205,95.8,123.4,123.31,3.46]
[1767020916406,113.5598,123.43,123.31,3.46]
[1767020916407,0.05567091,123.36,123.31,3.46]
[1767020916704,7.3018,123.41,123.33,3.46]
[1767020917309,7.3018,123.41,123.35,3.46]
[1767020917708,0.0592506,123.39,123.37,0.0550881]
[1767020920712,103.1007,123.43,123.37,0.0550881]
[1767020920911,7.3007,123.43,123.37,0.0550881]
[1767020921309,7.3008,123.42,123.37,0.0550881]
[1767020921510,0.0618169,123.41,123.37,0.0550881]
[1767020926209,0.0618169,123.41,123.37,3.3350881]
[1767020926405,113.5187,123.48,123.37,3.3350881]
[1767020926716,113.5187,123.48,123.38,99.1]
[1767020927402,0.05904328,123.44,123.42,0.06122208]
[1767020929814,113.4888,123.51,123.42,3.34122208]
[1767020930109,221.12669716,123.53,123.42,3.28]
[1767020930311,209.2667,123.53,123.42,3.28]
[1767020930519,209.2667,123.53,123.44,3.28]
[1767020930718,0.05932913,123.5,123.47,0.0515722]
[1767020931512,7.35552913,123.5,123.47,0.0015722]
[1767020931701,7.35552913,123.5,123.44,3.28]
[1767020932618,7.35552913,123.5,123.46,0.05619147]
[1767020935616,7.2967,123.49,123.46,0.05619147]
[1767020936310,113.55962913,123.5,123.42,3.32]
[1767020936617,113.5146,123.48,123.39,95.8]
[1767020936818,113.5146,123.48,123.4,3.32]
[1767020937017,7.2985,123.46,123.4,3.32]
[1767020937212,0.0619822,123.44,123.42,0.05255797]
[1767020937410,0.0019822,123.44,123.42,3.37255797]
[1767020938320,0.0019822,123.44,123.42,0.05255797]
[1767020940621,0.0019822,123.44,123.42,3.37255797]
[1767020940814,4.2598718,123.52,123.43,3.32]
[1767020941123,7.2961,123.5,123.44,3.32]
[1767020942021,0.05684088,123.48,123.46,0.05669679]
[1767020942517,7.2953,123.52,123.46,0.05669679]
[1767020942718,100.0598718,123.53,123.46,0.05669679]
[1767020943512,107.3544718,123.53,123.46,3.37669679]
[1767020943823,0.05212287,123.51,123.46,3.37669679]
[1767020944617,0.00212287,123.51,123.47,3.32]
[1767020944824,4.2598718,123.58,123.48,3.32]
[1767020945023,4.2598718,123.58,123.49,3.32]
[1767020945219,117.6831718,123.58,123.49,3.32]
[1767020945527,113.4496,123.55,123.46,99.1]
[1767020945915,0.0533889,123.52,123.49,0.05562879]
[1767020947327,7.3483889,123.52,123.49,0.05562879]
[1767020947532,7.3483889,123.52,123.46,3.32]
[1767020947727,0.0533889,123.52,123.43,106.3797]
[1767020947921,117.7209718,123.54,123.44,3.32]
[1767020948231,7.2956,123.51,123.44,3.32]
[1767020948620,0.05641461,123.49,123.46,0.05603788]
[1767020950118,7.2953,123.52,123.46,3.37603788]
[1767020950323,4.2598718,123.57,123.46,3.37603788]
[1767020950523,209.1871,123.58,123.46,3.32]
[1767020950830,7.2932,123.55,123.48,3.32]
[1767020951232,0.05326222,123.53,123.5,0.06059902]
[1767020954431,0.05326222,123.53,123.5,3.38059902]
[1767020955537,0.05326222,123.53,123.5,0.06059902]
[1767020955739,0.05326222,123.53,123.5,3.54059902]
[1767020957151,0.05326222,123.53,123.5,0.06059902]
[1767020958751,0.05326222,123.53,123.5,0.00059902]
[1767020959046,7.34756222,123.53,123.5,0.00059902]
[1767020960445,7.2952,123.52,123.45,3.48]
[1767020961253,7.2955,123.51,123.45,3.48]
[1767020961453,0.05747827,123.49,123.47,0.05524819]
[1767020964356,7.2955,123.51,123.47,0.05524819]
[1767020964749,7.2947,123.53,123.47,3.53524819]
[1767020964949,113.4425,123.56,123.47,3.48]
[1767020965145,95.76,123.58,123.47,3.48]
[1767020965354,0.06184021,123.54,123.51,0.05656992]
[1767020979664,7.35554021,123.54,123.51,0.05656992]
[1767020985967,0.06184021,123.54,123.51,0.05656992]
[1767020986161,0.06184021,123.54,123.51,3.35656992]
[1767020988559,0.06184021,123.54,123.52,96.87125779]
[1767020988761,0.06184021,123.54,123.53,3.3]
[1767020989172,7.2912,123.59,123.53,3.3]
[1767020989373,103.0101,123.61,123.54,3.3]
[1767020989561,226.6722,123.68,123.57,3.3]
[1767020989767,116.07314561,123.66,123.57,3.3]
[1767020989961,10.01124561,123.64,123.57,3.3]
[1767020990164,0.05613612,123.62,123.57,3.3]
[1767020990364,0.05613612,123.62,123.59,0.05479975]
[1767020991065,0.05613612,123.62,123.53,3.3]
[1767020991269,129.40322844,123.65,123.55,3.3]
[1767020991571,7.2881,123.64,123.56,3.3]
[1767020991776,7.2881,123.64,123.57,3.3]
[1767020991967,10.01124561,123.64,123.57,3.3]
[1767020992165,0.05130238,123.62,123.55,7.2927]
[1767020992371,2.77444799,123.62,123.55,99.0]
[1767020992675,2.77444799,123.62,123.55,3.3]
[1767020993181,2.77444799,123.62,123.57,0.05831365]
[1767020993567,10.06374799,123.62,123.57,0.05831365]
[1767020993768,10.06374799,123.62,123.57,3.35831365]
[1767020993769,0.05130238,123.62,123.57,3.35831365]
[1767020994170,0.05130238,123.62,123.58,3.3]
[1767020995368,0.05130238,123.62,123.6,3.3]
[1767020995669,5.42302844,123.65,123.61,3.3]
[1767020995877,7.2849,123.69,123.62,3.3]
[1767020996086,5.94314561,123.68,123.61,95.7]
[1767020996371,3.22,123.68,123.61,98.89]
[1767020996766,0.05490326,123.66,123.63,0.05895148]
[1767020996972,0.05490326,123.66,123.61,95.7]
[1767020997975,0.05490326,123.66,123.62,0.05340721]
[1767020999773,3.27490326,123.66,123.62,0.05340721]
[1767020999974,3.22,123.64,123.59,95.68]
[1767021000274,2.72314561,123.65,123.59,95.68]
[1767021000472,3.22,123.66,123.58,3.19]
[1767021000777,3.22,123.65,123.57,3.19]
[1767021001077,5.94314561,123.66,123.6,0.05702004]
[1767021001381,3.22,123.64,123.6,0.05702004]
[1767021001576,3.22,123.64,123.56,3.19]
[1767021001885,10.5092,123.62,123.55,98.85]
[1767021002482,7.2897,123.61,123.55,3.19]
[1767021002673,0.05104808,123.59,123.57,0.05396914]
[1767021003584,3.22,123.65,123.58,3.19]
[1767021003783,208.9739,123.7,123.59,2.72314561]
[1767021004080,7.285,123.69,123.62,3.19]
[1767021004481,0.0623271,123.67,123.64,0.05701378]
[1767021006784,0.0023271,123.67,123.64,3.24701378]
[1767021007175,0.0023271,123.67,123.65,98.85]
[1767021007379,0.0023271,123.67,123.65,106.1369]
[1767021007782,0.0023271,123.67,123.66,3.19]
[1767021008087,10.5021,123.74,123.66,10.4764]
[1767021008387,10.5021,123.74,123.67,98.83]
[1767021008587,3.22,123.77,123.7,10.4739]
[1767021008788,3.22,123.8,123.71,95.64]
[1767021008975,3.22,123.8,123.71,208.941]
[1767021009177,0.05998842,123.77,123.74,0.0521899]
[1767021010288,3.27998842,123.77,123.69,95.64]
[1767021010480,3.22,123.77,123.69,95.64]
[1767021010675,3.22,123.74,123.66,7.2862]
[1767021010878,3.22,123.74,123.67,95.64]
[1767021011078,3.22,123.74,123.67,95.69]
[1767021011282,0.05667996,123.72,123.69,0.05538016]
[1767021011991,0.05667996,123.72,123.64,7.3374]
[1767021012179,3.22,123.73,123.66,95.62]
[1767021012483,3.22,123.72,123.63,95.62]
[1767021013178,0.05330113,123.69,123.66,0.05952949]
[1767021013382,0.05330113,123.69,123.62,95.62]
[1767021013584,10.5047,123.7,123.62,95.62]
[1767021013782,3.22,123.7,123.62,95.67]
[1767021014183,3.22,123.7,123.63,95.62]
[1767021014379,0.05136494,123.67,123.65,0.05815799]
[1767021014986,0.00136494,123.67,123.65,0.05815799]
[1767021016391,0.00136494,123.67,123.66,95.62]
[1767021017587,3.4,123.76,123.66,97.24]
[1767021017792,3.4,123.76,123.66,95.62]
[1767021018093,10.6809,123.76,123.67,7.2858]
[1767021018493,0.06162186,123.73,123.7,0.05328244]
[1767021020598,3.46162186,123.73,123.7,0.00328244]
[1767021022289,3.4,123.72,123.64,7.2875]
[1767021022597,3.4,123.72,123.65,95.6]
[1767021023389,0.054331,123.7,123.67,0.05589473]
[1767021023898,3.454331,123.7,123.63,0.05]
[1767021024091,3.454331,123.7,123.63,95.65]
[1767021024290,3.454331,123.7,123.63,0.05]
[1767021024496,3.454331,123.7,123.63,95.65]
[1767021024894,0.054331,123.7,123.65,0.05682389]
[1767021025096,0.054331,123.7,123.65,0.16682389]
[1767021025294,0.054331,123.7,123.66,95.6]
[1767021026096,3.4,123.73,123.66,95.6]
[1767021026296,3.4,123.76,123.68,0.11]
[1767021026496,3.4,123.79,123.68,0.11]
[1767021026697,3.4,123.79,123.69,95.71]
[1767021027097,3.4,123.79,123.69,0.11]
[1767021027298,0.05711082,123.75,123.73,0.05992749]
[1767021028905,10.6792,123.79,123.73,0.05992749]
[1767021029203,3.4,123.79,123.73,0.05992749]
[1767021029790,3.4,123.81,123.73,0.10992749]
[1767021029995,0.06107008,123.78,123.76,0.05349686]
[1767021031208,0.00107008,123.78,123.76,0.05349686]
[1767021032207,0.00107008,123.78,123.76,0.00349686]
[1767021032397,0.00107008,123.78,123.73,95.62]
[1767021033108,0.00107008,123.78,123.74,0.04]
[1767021033503,0.00107008,123.78,123.76,0.04]
[1767021033801,15.83976628,123.85,123.78,0.04]
[1767021034404,3.4,123.84,123.79,95.56]
[1767021034604,3.4,123.84,123.77,95.56]
[1767021034805,0.0518328,123.82,123.79,0.05890307]
[1767021035005,3.4518328,123.82,123.77,95.56]
[1767021035611,10.7292328,123.82,123.75,95.56]
[1767021035804,3.4518328,123.82,123.72,0.1]
[1767021036000,0.059611,123.78,123.76,0.05459017]
[1767021037908,19.23976628,123.85,123.77,102.8596]
[1767021038108,19.23976628,123.85,123.77,0.04]
[1767021038311,19.23976628,123.85,123.77,95.58]
[1767021038515,3.4,123.84,123.77,95.54]
[1767021038707,0.06101254,123.82,123.79,0.05589618]
[1767021040503,0.06101254,123.82,123.73,7.322]
[1767021040707,3.4,123.82,123.74,95.64]
[1767021041406,7.2779,123.81,123.74,95.64]
[1767021041711,0.0566886,123.79,123.76,0.05704443]
[1767021043407,3.4,123.82,123.76,0.05704443]
[1767021043609,26.51546628,123.85,123.77,0.04]
[1767021043810,15.83976628,123.85,123.78,95.58]
[1767021044502,0.05228851,123.83,123.8,0.05765514]
[1767021048712,3.48,123.89,123.8,0.05765514]
[1767021048910,3.48,123.89,123.81,95.52]
[1767021049308,10.7535,123.89,123.81,102.7975]
[1767021049511,3.48,123.88,123.77,113.243]
[1767021049711,3.48,123.88,123.81,0.05511886]
[1767021049712,0.05396831,123.84,123.81,0.05511886]
[1767021050716,3.53396831,123.84,123.77,7.2796]
[1767021050912,0.05396831,123.84,123.77,95.52]
[1767021051315,0.05396831,123.84,123.77,102.7998]
[1767021051817,0.05396831,123.84,123.79,0.05939053]
[1767021055315,0.05396831,123.84,123.79,95.55939053]
[1767021055712,0.00396831,123.84,123.79,208.78479053]
[1767021056208,0.00396831,123.84,123.8,95.5]
[1767021056409,0.00396831,123.84,123.81,7.2775]
[1767021057415,0.00396831,123.84,123.8,95.5]
[1767021057813,0.00396831,123.84,123.81,7.2776]
[1767021059821,0.00396831,123.84,123.81,102.7576]
[1767021060818,0.00396831,123.84,123.82,7.2771]
[1767021061123,0.00396831,123.84,123.82,7.33765006]
[1767021061326,0.00396831,123.84,123.83,95.48]
[1767021062521,10.7018,123.92,123.84,7.2758]
[1767021062722,3.43,123.91,123.84,7.2758]
[1767021063025,3.43,123.91,123.86,7.2748]
[1767021063522,0.05659329,123.9,123.87,0.05644638]
[1767021064621,0.05659329,123.9,123.87,102.81054638]
[1767021065027,3.48659329,123.9,123.79,113.2231]
[1767021065320,3.43,123.9,123.81,7.2774]
[1767021065719,3.43,123.87,123.79,7.2784]
[1767021065919,3.43,123.87,123.8,95.48]
[1767021066122,0.05830936,123.85,123.82,0.06042428]
[1767021067926,3.48830936,123.85,123.82,0.00042428]
[1767021068820,0.05830936,123.85,123.76,7.2802]
[1767021069013,3.43,123.84,123.77,95.48]
[1767021069418,10.7062,123.84,123.78,95.48]
[1767021069825,0.05729709,123.82,123.8,0.05342803]
[1767021070016,0.06090755,123.82,123.8,0.05342803]
[1767021073234,0.00090755,123.82,123.8,0.05342803]
[1767021074635,0.00090755,123.82,123.8,0.00342803]
[1767021075628,3.32090755,123.82,123.73,113.2822]
[1767021075827,3.32,123.82,123.76,95.48]
[1767021076624,0.0620465,123.8,123.78,0.05585939]
[1767021076831,0.0620465,123.8,123.74,95.48]
[1767021077035,3.32,123.81,123.74,95.48]
[1767021077232,10.5978,123.81,123.74,102.7618]
[1767021077735,0.06153176,123.79,123.76,0.06184117]
[1767021079523,0.00153176,123.79,123.76,0.06184117]
[1767021079726,3.32,123.84,123.76,113.31524117]
[1767021079924,3.32,123.84,123.76,113.2534]
[1767021080134,10.5949,123.86,123.76,113.2534]
[1767021080336,3.32,123.85,123.76,113.2534]
[1767021080533,3.32,123.85,123.77,95.5]
[1767021080734,3.32,123.84,123.77,95.5]
[1767021080937,0.06043762,123.82,123.79,0.05278363]
[1767021084448,0.06043762,123.82,123.79,7.33168363]
[1767021084842,0.06043762,123.82,123.79,102.83168363]
[1767021085347,0.06043762,123.82,123.79,95.55278363]
[1767021086446,0.06043762,123.82,123.79,102.83148363]
[1767021086746,0.00043762,123.82,123.79,95.55278363]
[1767021087246,10.5946,123.87,123.79,98.87278363]
[1767021087542,10.5946,123.87,123.8,7.2783]
[1767021088043,7.2746,123.87,123.8,7.2783]
[1767021088247,0.05648727,123.85,123.82,0.0561121]
[1767021088451,3.37648727,123.85,123.79,95.5]
[1767021088839,3.32,123.84,123.79,95.5]
[1767021089246,3.32,123.84,123.77,98.82]
[1767021089445,0.05784941,123.82,123.79,0.05421275]
[1767021091642,3.37784941,123.82,123.79,0.00421275]
[1767021091838,3.32,123.81,123.75,95.5]
[1767021092847,3.38222079,123.79,123.71,10.6033]
[1767021093042,3.32,123.79,123.71,106.1033]
[1767021093247,3.32,123.79,123.71,3.32]
[1767021093649,10.5996,123.78,123.71,3.32]
[1767021093954,0.05932004,123.76,123.73,0.04013536]
[1767021096552,3.32,123.81,123.73,3.36013536]
[1767021096744,3.32,123.81,123.73,3.32]
[1767021096943,3.32,123.81,123.73,98.82]
[1767021097539,3.32,123.81,123.73,10.6023]
[1767021097746,0.05107026,123.78,123.76,0.0569282]
[1767021101752,0.05107026,123.78,123.73,95.52]
[1767021102251,0.05107026,123.78,123.72,3.32]
[1767021102654,0.05107026,123.78,123.74,0.04252721]
[1767021104654,7.33067026,123.78,123.74,0.04252721]
[1767021105053,113.29227026,123.78,123.69,3.32]
[1767021105359,3.32,123.77,123.69,3.32]
[1767021106459,0.05784538,123.74,123.69,3.32]
[1767021113973,3.13784538,123.74,123.65,3.12]
[1767021114169,3.08,123.74,123.65,3.12]
[1767021114371,0.00493935,123.71,123.65,140.7434]
[1767021114575,10.3611,123.76,123.69,5.83317248]
[1767021114777,10.3611,123.76,123.69,3.12]
[1767021114981,10.3611,123.76,123.69,5.83317248]
[1767021115178,10.3611,123.76,123.69,3.12]
[1767021115677,0.05638918,123.74,123.71,0.05493935]
[1767021116677,7.2799,123.78,123.71,3.17493935]
[1767021117878,0.05337651,123.76,123.71,5.88811183]
[1767021119782,0.05337651,123.76,123.71,3.17493935]
[1767021120487,0.00337651,123.76,123.73,3.12]
[1767021120983,0.00337651,123.76,123.73,98.68]
[1767021121181,0.00337651,123.76,123.74,3.12]
[1767021121384,3.08,123.85,123.77,3.12]
[1767021121682,3.08,123.85,123.77,5.83317248]
[1767021121875,3.08,123.85,123.78,3.12]
[1767021122277,0.05783463,123.83,123.8,0.05885866]
[1767021122478,0.05783463,123.83,123.76,101.39317248]
[1767021122681,0.05783463,123.83,123.77,3.12]
[1767021123485,0.05783463,123.83,123.79,0.05224725]
[1767021123682,7.33453463,123.83,123.79,0.05224725]
[1767021123987,10.41453463,123.83,123.79,0.05224725]
[1767021126184,3.08,123.82,123.79,0.00224725]
[1767021126384,3.08,123.82,123.68,226.6486]
[1767021126385,3.08,123.81,123.72,3.12]
[1767021126684,3.08,123.79,123.72,3.12]
[1767021126893,3.08,123.77,123.7,3.12]
[1767021127480,0.05989587,123.75,123.72,0.05131315]
[1767021129889,10.3591,123.79,123.72,3.17131315]
[1767021130683,7.2796,123.78,123.72,3.17131315]
[1767021130888,0.06196771,123.77,123.72,3.17131315]
[1767021135294,10.42216771,123.77,123.72,0.05131315]
[1767021136088,10.6709,123.76,123.72,0.05131315]
[1767021140997,0.06196771,123.77,123.72,0.05131315]
[1767021142305,7.34216771,123.77,123.72,0.05131315]
[1767021142608,3.39,123.76,123.72,0.05131315]
[1767021142898,3.39,123.76,123.68,3.52]
[1767021143599,10.6713,123.75,123.68,3.52]
[1767021144101,3.39,123.75,123.68,3.52]
[1767021144404,0.06042172,123.73,123.7,0.05153917]
[1767021146306,7.34292172,123.73,123.7,0.05153917]
[1767021147001,10.73292172,123.73,123.66,10.8065]
[1767021147304,3.39,123.71,123.64,3.52]
[1767021148093,113.2762,123.74,123.64,3.52]
[1767021148094,0.05618043,123.69,123.64,3.52]
[1767021150006,106.2335,123.72,123.64,3.52]
[1767021150606,106.2335,123.72,123.64,10.8076]
[1767021151005,0.05759261,123.69,123.67,0.05933224]
[1767021151514,10.6722,123.74,123.67,3.57933224]
[1767021152507,0.05339941,123.72,123.67,3.57933224]
[1767021152707,0.05339941,123.72,123.68,3.52]
[1767021153406,0.00339941,123.72,123.68,10.8052]
[1767021153609,0.00339941,123.72,123.69,3.52]
[1767021159019,0.00339941,123.72,123.67,3.57933224]
[1767021159917,0.00339941,123.72,123.67,10.86533224]
[1767021162017,0.00339941,123.72,123.68,10.8054]
[1767021163515,3.39,123.77,123.7,3.52]
[1767021163718,3.39,123.79,123.7,3.52]
[1767021164615,0.06050391,123.76,123.73,0.05235572]
[1767021166820,3.3,123.84,123.73,113.33065572]
[1767021167016,3.3,123.84,123.75,3.28]
[1767021167319,3.3,123.86,123.77,3.28]
[1767021167517,3.3,123.86,123.78,3.28]
[1767021167922,0.05571683,123.83,123.79,7.2781]
[1767021168110,0.05571683,123.83,123.81,0.0538863]
[1767021170416,117.37279884,123.89,123.81,0.0538863]
[1767021170417,3.3,123.89,123.82,3.28]
[1767021170819,3.3,123.89,123.81,95.56]
[1767021170820,7.2736,123.87,123.81,95.56]
[1767021171016,10.5736,123.87,123.79,3.28]
[1767021171323,10.5736,123.87,123.82,0.05381494]
[1767021171324,0.05598844,123.84,123.82,0.05381494]
[1767021177622,7.2743,123.86,123.82,0.05381494]
[1767021177916,3.3,123.87,123.82,0.05381494]
[1767021178725,0.05891426,123.86,123.82,0.05381494]
[1767021180624,0.05891426,123.86,123.82,0.00381494]
[1767021180625,3.29891426,123.86,123.82,0.00381494]
[1767021180827,3.24,123.85,123.78,3.29]
[1767021181534,10.5139,123.87,123.79,3.29]
[1767021181730,3.24,123.89,123.79,3.29]
[1767021181927,3.24,123.89,123.83,0.06096371]
[1767021181928,0.00488015,123.85,123.83,0.06096371]
[1767021182136,0.00488015,123.85,123.83,3.35096371]
[1767021183131,3.24,123.93,123.84,3.29]
[1767021183628,3.24,123.92,123.84,3.29]
[1767021183821,7.48259884,123.92,123.84,3.29]
[1767021184020,0.05542873,123.89,123.87,0.00118141]
[1767021184235,3.29542873,123.89,123.82,95.5]
[1767021184523,3.24,123.88,123.81,3.29]
[1767021184727,3.24,123.87,123.79,3.29]
[1767021185431,0.05161731,123.84,123.82,0.05947512]
[1767021186128,0.05161731,123.84,123.78,95.5]
[1767021186325,0.05161731,123.84,123.78,98.79]
[1767021186530,0.05161731,123.84,123.78,3.29]